fUST/lending_fUST_20240911
["ID","MTS","AMOUNT","RATE_DAILY","PERIOD"]
[337718342,1725987078046,-500.0,0.0001863,2]
[337718343,1725987078057,-500.0,0.0001863,2]
[337718344,1725987078067,-500.0,0.0001863,2]
[337718345,1725987078076,-1099.81,0.0001863,2]
[337718346,1725987078087,-1604.71,0.0001863,2]
[337718347,1725987078097,-2210.6,0.0001863,2]
[337718348,1725987078107,-500.0,0.0001863,2]
[337718349,1725987078117,-1189.48,0.0001863,2]
[337718350,1725987078127,-500.0,0.0001863,2]
[337718351,1725987078136,-663.24,0.0001863,2]
[337718352,1725987078146,-1038.53,0.0001863,2]
[337718353,1725987078156,-1169.08,0.0001863,2]
[337718354,1725987078166,-2905.25585,0.0001863,2]
[337718355,1725987078175,-505.5,0.0001863,2]
[337718356,1725987078185,-2905.25585,0.0001863,2]
[337718357,1725987078195,-1822.14,0.0001863,2]
[337718358,1725987078204,-720.07,0.0001863,2]
[337718359,1725987078213,-229.097636,0.0001863,2]
[337718360,1725987078223,-229.097636,0.0001863,2]
[337718361,1725987078233,-2913.8,0.0001863,2]
[337718362,1725987078243,-1955.94,0.0001863,2]
[337718363,1725987078253,-742.92,0.0001863,2]
[337718364,1725987078263,-500.0,0.0001863,2]
[337718365,1725987078273,-609.62,0.0001863,2]
[337718366,1725987078282,-1713.89,0.0001863,2]
[337718367,1725987078292,-500.0,0.0001863,2]
[337718368,1725987078302,-971.86,0.0001863,2]
[337718369,1725987078313,-2284.58,0.0001863,2]
[337718370,1725987078322,-151.0,0.0001863,2]
[337718371,1725987078333,-1021.87,0.0001863,2]
[337718372,1725987078342,-792.09,0.0001863,2]
[337718373,1725987078352,-1816.79,0.0001863,2]
[337718374,1725987078362,-500.0,0.0001863,2]
[337718375,1725987078372,-720.94,0.0001863,2]
[337718376,1725987078381,-753.23,0.0001863,2]
[337718377,1725987078391,-1933.6,0.0001863,2]
[337718378,1725987078405,-1008.22,0.0001863,2]
[337718379,1725987078415,-1583.17,0.0001863,2]
[337718380,1725987078424,-500.0,0.0001863,2]
[337718381,1725987078434,-2583.819816,0.0001863,2]
[337718382,1725987078443,-2583.819816,0.0001863,2]
[337718383,1725987078453,-500.0,0.0001863,2]
[337718384,1725987078463,-500.0,0.0001863,2]
[337718385,1725987078473,-9481.22,0.0001863,2]
[337718386,1725987078483,-1938.09,0.0001863,2]
[337718387,1725987078493,-1806.64,0.0001863,2]
[337718388,1725987078503,-589.44,0.0001863,2]
[337718389,1725987078513,-500.0,0.0001863,2]
[337718390,1725987078523,-1240.8,0.0001863,2]
[337718391,1725987078532,-946.63,0.0001863,2]
[337718392,1725987078542,-38864.62,0.0001863,2]
[337718393,1725987078552,-500.0,0.0001863,2]
[337718394,1725987078561,-2013.95,0.0001863,2]
[337718395,1725987078571,-2044.37,0.0001863,2]
[337718396,1725987078582,-53987.64,0.0001863,2]
[337718397,1725987078591,-500.0,0.0001863,2]
[337718398,1725987078602,-4713.36,0.0001863,2]
[337718399,1725987078613,-535.49,0.0001863,2]
[337718400,1725987078623,-500.0,0.0001863,2]
[337718401,1725987078632,-965.38,0.0001863,2]
[337718402,1725987078643,-396.40685459,0.0001863,2]
[337718403,1725987078652,-215.567857,0.0001863,2]
[337718404,1725987078662,-806.04,0.0001863,2]
[337718405,1725987078672,-500.0,0.0001863,2]
[337718406,1725987078681,-215.567857,0.0001863,2]
[337718407,1725987078691,-500.0,0.0001863,2]
[337718408,1725987078701,-560.49712094,0.0001863,2]
[337718409,1725987078710,-500.0,0.0001863,2]
[337718410,1725987078720,-2582.53,0.0001863,2]
[337718411,1725987078730,-151.0,0.0001863,2]
[337718412,1725987078740,-677.86,0.0001863,2]
[337718413,1725987078750,-500.0,0.0001863,2]
[337718414,1725987078760,-500.0,0.0001863,2]
[337718415,1725987078770,-771.86,0.0001863,2]
[337718416,1725987078779,-500.0,0.0001863,2]
[337718417,1725987078789,-177.5808894,0.0001863,2]
[337718418,1725987078800,-1718.58,0.0001863,2]
[337718419,1725987078810,-1132.77,0.0001863,2]
[337718420,1725987078820,-151.0,0.0001863,2]
[337718421,1725987078830,-2709.96,0.0001863,2]
[337718422,1725987078841,-652.93,0.0001863,2]
[337718423,1725987078851,-151.0,0.0001863,2]
[337718424,1725987078861,-500.0,0.0001863,2]
[337718425,1725987078871,-151.0,0.0001863,2]
[337718426,1725987078882,-151.0,0.0001863,2]
[337718427,1725987078892,-5158.88,0.0001863,2]
[337718428,1725987078901,-500.0,0.0001863,2]
[337718429,1725987078911,-311.01469897,0.0001863,2]
[337718430,1725987078921,-1065.08,0.00018631,2]
[337718431,1725987078931,-500.0,0.00018631,2]
[337718432,1725987078940,-660.04,0.00018631,2]
[337718433,1725987078951,-500.0,0.00018631,2]
[337718434,1725987078963,-500.0,0.00018631,2]
[337718435,1725987078974,-500.0,0.00018631,2]
[337718436,1725987078985,-1568.6,0.00018631,2]
[337718437,1725987078994,-792.17,0.00018631,2]
[337718438,1725987079004,-500.0,0.00018631,2]
[337718439,1725987079015,-904.46,0.00018631,2]
[337718440,1725987079024,-500.0,0.00018631,2]
[337718441,1725987079034,-625.22,0.00018631,2]
[337718442,1725987079045,-536.45,0.00018631,2]
[337718443,1725987079055,-500.0,0.00018631,2]
[337718444,1725987079064,-500.0,0.00018631,2]
[337718445,1725987079074,-502.6,0.00018631,2]
[337718446,1725987079085,-500.0,0.00018631,2]
[337718447,1725987079095,-1049.86,0.00018631,2]
[337718448,1725987079104,-1076.1,0.00018631,2]
[337718449,1725987079115,-500.0,0.00018631,2]
[337718450,1725987079125,-500.0,0.00018631,2]
[337718451,1725987079134,-500.0,0.00018631,2]
[337718452,1725987079144,-500.0,0.00018631,2]
[337718453,1725987079154,-500.0,0.00018631,2]
[337718454,1725987079164,-500.0,0.00018631,2]
[337718455,1725987079174,-500.0,0.00018631,2]
[337718456,1725987079185,-500.0,0.00018631,2]
[337718457,1725987079195,-629.08,0.00018631,2]
[337718458,1725987079204,-500.0,0.00018631,2]
[337718459,1725987079214,-712.42,0.00018631,2]
[337718460,1725987079224,-531.21604671,0.00018631,2]
[337718461,1725987079234,-500.0,0.00018631,2]
[337718462,1725987079244,-500.0,0.00018631,2]
[337718463,1725987079253,-500.0,0.00018631,2]
[337718464,1725987079263,-500.0,0.00018631,2]
[337718465,1725987079273,-500.0,0.00018631,2]
[337718466,1725987079282,-500.0,0.00018631,2]
[337718467,1725987079291,-852.74,0.00018631,2]
[337718468,1725987079301,-500.0,0.00018631,2]
[337718469,1725987079310,-158.65589058,0.00018631,2]
[337718470,1725987079319,-500.0,0.00018631,2]
[337718471,1725987079329,-151.0,0.00018631,2]
[337718472,1725987079339,-800.96,0.00018631,2]
[337718473,1725987079348,-649.67,0.00018631,2]
[337718474,1725987079357,-500.0,0.00018631,2]
[337718475,1725987079367,-500.0,0.00018631,2]
[337718476,1725987079376,-588.79,0.00018631,2]
[337718477,1725987079385,-500.0,0.00018631,2]
[337718478,1725987079394,-1531.75,0.00018631,2]
[337718479,1725987079404,-677.0,0.00018631,2]
[337718480,1725987079414,-500.0,0.00018631,2]
[337718481,1725987079423,-582.35,0.00018631,2]
[337718482,1725987079433,-1661.25,0.00018631,2]
[337718483,1725987079442,-500.0,0.00018631,2]
[337718484,1725987079452,-500.0,0.00018631,2]
[337718485,1725987079461,-151.0,0.00018631,2]
[337718486,1725987079471,-902.12,0.00018631,2]
[337718487,1725987079480,-500.0,0.00018631,2]
[337718488,1725987079490,-151.0,0.00018631,2]
[337718489,1725987079499,-1161.67,0.00018631,2]
[337718490,1725987079509,-1545.8,0.00018631,2]
[337718491,1725987079519,-500.0,0.00018631,2]
[337718492,1725987079528,-1031.96,0.00018631,2]
[337718493,1725987079538,-449.849696,0.00018631,2]
[337718494,1725987079547,-500.0,0.00018631,2]
[337718495,1725987079557,-1005.54,0.00018631,2]
[337718496,1725987079567,-449.849696,0.00018631,2]
[337718497,1725987079576,-801.25,0.00018631,2]
[337718498,1725987079587,-682.45,0.00018631,2]
[337718499,1725987079596,-1528.95,0.00018631,2]
[337718500,1725987079606,-686.42,0.00018631,2]
[337718501,1725987079617,-500.0,0.00018631,2]
[337718502,1725987079626,-500.0,0.00018631,2]
[337718503,1725987079636,-3196.6,0.00018631,2]
[337718504,1725987079645,-1720.38,0.00018631,2]
[337718505,1725987079656,-580.2,0.00018631,2]
[337718506,1725987079666,-500.0,0.00018631,2]
[337718507,1725987079676,-151.0,0.00018631,2]
[337718508,1725987079685,-2053.93,0.00018631,2]
[337718509,1725987079695,-500.0,0.00018631,2]
[337718510,1725987079704,-1653.22,0.00018631,2]
[337718511,1725987079714,-500.0,0.00018631,2]
[337718512,1725987079723,-2581.4,0.00018631,2]
[337718513,1725987079734,-151.0,0.00018631,2]
[337718514,1725987079744,-500.0,0.00018631,2]
[337718515,1725987079754,-151.0,0.00018631,2]
[337718516,1725987079763,-500.0,0.00018631,2]
[337718517,1725987079773,-500.0,0.00018631,2]
[337718518,1725987079783,-582.87,0.00018631,2]
[337718519,1725987079793,-665.52,0.00018631,2]
[337718520,1725987079803,-500.0,0.00018631,2]
[337718521,1725987079813,-500.0,0.00018631,2]
[337718522,1725987079822,-624.21,0.00018631,2]
[337718523,1725987079946,-796.18,0.00018631,2]
[337718524,1725987079959,-500.0,0.00018631,2]
[337718525,1725987079969,-500.0,0.00018631,2]
[337718526,1725987079978,-1602.56,0.00018631,2]
[337718527,1725987079988,-1153.39,0.00018631,2]
[337718528,1725987079997,-979.44,0.00018631,2]
[337718529,1725987080007,-629.96,0.00018631,2]
[337718530,1725987080017,-931.29,0.00018631,2]
[337718531,1725987080026,-500.0,0.00018631,2]
[337718532,1725987080036,-500.0,0.00018631,2]
[337718533,1725987080045,-516.8,0.00018631,2]
[337718534,1725987080055,-1387.23,0.00018631,2]
[337718535,1725987080065,-1249.15,0.00018631,2]
[337718536,1725987080074,-500.0,0.00018631,2]
[337718537,1725987080084,-500.0,0.00018631,2]
[337718538,1725987080094,-507.63,0.00018631,2]
[337718539,1725987080104,-3108.36,0.00018631,2]
[337718540,1725987080113,-1950.86,0.00018631,2]
[337718541,1725987080123,-513.58,0.00018631,2]
[337718542,1725987080132,-500.0,0.00018631,2]
[337718543,1725987080141,-1468.78,0.00018631,2]
[337718544,1725987080151,-4251.41,0.00018631,2]
[337718545,1725987080162,-500.0,0.00018631,2]
[337718546,1725987080171,-500.0,0.00018631,2]
[337718547,1725987080182,-500.0,0.00018631,2]
[337718548,1725987080191,-500.0,0.00018631,2]
[337718549,1725987080200,-500.0,0.00018631,2]
[337718550,1725987080210,-818.77,0.00018631,2]
[337718551,1725987080219,-533.02171701,0.00018631,2]
[337718552,1725987080228,-500.0,0.00018631,2]
[337718553,1725987080238,-500.0,0.00018631,2]
[337718554,1725987080247,-547.21,0.00018631,2]
[337718555,1725987080257,-889.36,0.00018631,2]
[337718556,1725987080266,-500.0,0.00018631,2]
[337718557,1725987080277,-948.67,0.00018631,2]
[337718558,1725987080286,-653.85,0.00018631,2]
[337718559,1725987080296,-527.0,0.00018631,2]
[337718560,1725987080306,-917.474744,0.00018631,2]
[337718561,1725987080315,-1596.56,0.00018631,2]
[337718562,1725987080325,-626.02,0.00018631,2]
[337718563,1725987080336,-917.474744,0.00018631,2]
[337718564,1725987080345,-500.0,0.00018631,2]
[337718565,1725987080354,-500.0,0.00018631,2]
[337718566,1725987080363,-553.2,0.00018631,2]
[337718567,1725987080373,-848.19,0.00018631,2]
[337718568,1725987080383,-154.608651,0.00018631,2]
[337718569,1725987080393,-500.0,0.00018631,2]
[337718570,1725987080402,-882.16,0.00018631,2]
[337718571,1725987080412,-500.0,0.00018631,2]
[337718572,1725987080421,-578.17,0.00018631,2]
[337718573,1725987080431,-500.0,0.00018631,2]
[337718574,1725987080440,-500.0,0.00018631,2]
[337718575,1725987080449,-500.0,0.00018631,2]
[337718576,1725987080459,-841.44,0.00018631,2]
[337718577,1725987080468,-500.0,0.00018631,2]
[337718578,1725987080478,-642.34,0.00018631,2]
[337718579,1725987080487,-791.11,0.00018631,2]
[337718580,1725987080496,-2583.819816,0.00018631,2]
[337718581,1725987080505,-2583.819816,0.00018631,2]
[337718582,1725987080516,-500.0,0.00018631,2]
[337718583,1725987080527,-500.0,0.00018631,2]
[337718584,1725987080538,-500.0,0.00018631,2]
[337718585,1725987080550,-1895.41,0.00018631,2]
[337718586,1725987080561,-500.0,0.00018631,2]
[337718587,1725987080571,-2379.911523,0.00018631,2]
[337718588,1725987080582,-980.57,0.00018631,2]
[337718589,1725987080591,-2379.911523,0.00018631,2]
[337718590,1725987080600,-500.0,0.00018631,2]
[337718591,1725987080610,-2400.44,0.00018631,2]
[337718592,1725987080619,-151.0,0.00018631,2]
[337718593,1725987080629,-500.0,0.00018631,2]
[337718594,1725987080638,-1124.28,0.00018631,2]
[337718595,1725987080647,-672.56,0.00018631,2]
[337718596,1725987080656,-571.17,0.00018631,2]
[337718597,1725987080666,-500.0,0.00018631,2]
[337718598,1725987080675,-156.827101,0.00018631,2]
[337718599,1725987080685,-808.61,0.00018631,2]
[337718600,1725987080694,-500.0,0.00018631,2]
[337718601,1725987080703,-500.0,0.00018631,2]
[337718602,1725987080712,-1199.35,0.00018631,2]
[337718603,1725987080722,-500.0,0.00018631,2]
[337718604,1725987080731,-5334.834784,0.00018631,2]
[337718605,1725987080740,-500.0,0.00018631,2]
[337718606,1725987080749,-5334.834784,0.00018631,2]
[337718607,1725987080760,-1033.55,0.00018631,2]
[337718608,1725987080771,-1786.34,0.00018631,2]
[337718609,1725987080782,-500.0,0.00018631,2]
[337718610,1725987080795,-3242.368734,0.00018631,2]
[337718611,1725987080805,-3242.368734,0.00018631,2]
[337718612,1725987080817,-215.567857,0.00018631,2]
[337718613,1725987080827,-215.567857,0.00018631,2]
[337718614,1725987080839,-536.885181,0.00018631,2]
[337718615,1725987080851,-500.0,0.00018631,2]
[337718616,1725987080860,-857.51,0.00018631,2]
[337718617,1725987080869,-151.0,0.00018631,2]
[337718618,1725987080882,-500.0,0.00018631,2]
[337718619,1725987080892,-536.885181,0.00018631,2]
[337718620,1725987080903,-500.0,0.00018631,2]
[337718621,1725987080914,-500.0,0.00018631,2]
[337718622,1725987080926,-500.0,0.00018631,2]
[337718623,1725987080937,-742.91,0.00018631,2]
[337718624,1725987080947,-606.58,0.00018631,2]
[337718625,1725987080960,-500.0,0.00018631,2]
[337718626,1725987080970,-679.35,0.00018631,2]
[337718627,1725987080979,-500.0,0.00018631,2]
[337718628,1725987080990,-500.0,0.00018631,2]
[337718629,1725987080999,-500.0,0.00018633,2]
[337718630,1725987081008,-844.705938,0.00018633,2]
[337718631,1725987081018,-844.705938,0.00018633,2]
[337718632,1725987081027,-2905.25585,0.00018633,2]
[337718633,1725987081036,-2905.25585,0.00018633,2]
[337718634,1725987081045,-229.097636,0.00018633,2]
[337718635,1725987081055,-229.097636,0.00018633,2]
[337718636,1725987081064,-678.54,0.00018634,2]
[337718637,1725987081074,-156.123311,0.00018634,2]
[337718638,1725987081085,-151.0,0.00018634,2]
[337718639,1725987081094,-151.0,0.00018634,2]
[337718640,1725987081104,-151.0,0.00018634,2]
[337718641,1725987081113,-917.474744,0.00018634,2]
[337718642,1725987081122,-917.474744,0.00018634,2]
[337718643,1725987081131,-2379.911523,0.00018634,2]
[337718644,1725987081146,-2379.911523,0.00018634,2]
[337718645,1725987081156,-1000.0,0.00018642,2]
[337718646,1725987081165,-501.17925597,0.00018642,2]
[337718647,1725987081175,-411.73785433,0.00018668,2]
[337718648,1725987081184,-420.0,0.00018669,2]
[337718649,1725987081193,-3379.74334182,0.00018882,2]
[337718650,1725987081203,-1047.18,0.00018902,2]
[337718651,1725987081212,-500.0,0.00018903,2]
[337718652,1725987081222,-553.54,0.00018903,2]
[337718653,1725987081232,-2363.4,0.00018903,2]
[337718654,1725987081242,-977.86,0.00018903,2]
[337718655,1725987081251,-1813.25,0.00018903,2]
[337718656,1725987081261,-1983.67,0.00018903,2]
[337718657,1725987081270,-585.68,0.00018903,2]
[337718658,1725987081283,-2056.03,0.00018903,2]
[337718659,1725987081293,-1041.82,0.00018903,2]
[337718660,1725987081302,-200.0,0.00018903,2]
[337718661,1725987081311,-500.0,0.00018903,2]
[337718662,1725987081320,-890.94,0.00018903,2]
[337718663,1725987081331,-500.0,0.00018903,2]
[337718664,1725987081340,-500.0,0.00018903,2]
[337718665,1725987081349,-2908.31,0.00018903,2]
[337718666,1725987081358,-151.0,0.00018903,2]
[337718667,1725987081367,-570.37,0.00018903,2]
[337718668,1725987081377,-43984.4,0.00018903,2]
[337718669,1725987081386,-500.0,0.00018903,2]
[337718670,1725987081395,-2135.99,0.00018903,2]
[337718671,1725987081404,-3517.34,0.00018903,2]
[337718672,1725987081414,-539.11,0.00018903,2]
[337718673,1725987081423,-2575.2,0.00018903,2]
[337718674,1725987081433,-500.0,0.00018903,2]
[337718675,1725987081442,-5334.834784,0.00018903,2]
[337718676,1725987081452,-7865.92,0.00018903,2]
[337718677,1725987081461,-5334.834784,0.00018903,2]
[337718678,1725987081471,-500.0,0.00018903,2]
[337718679,1725987081480,-3508.18,0.00018903,2]
[337718680,1725987081489,-1299.19,0.00018903,2]
[337718681,1725987081499,-1213.25,0.00018903,2]
[337718682,1725987081508,-3242.368734,0.00018903,2]
[337718683,1725987081518,-3242.368734,0.00018903,2]
[337718684,1725987081528,-897.95,0.00018903,2]
[337718685,1725987081538,-536.885181,0.00018903,2]
[337718686,1725987081548,-2680.58,0.00018903,2]
[337718687,1725987081558,-867.86,0.00018903,2]
[337718688,1725987081567,-500.0,0.00018903,2]
[337718689,1725987081577,-500.0,0.00018903,2]
[337718690,1725987081586,-536.885181,0.00018903,2]
[337718691,1725987081596,-539.4,0.00018903,2]
[337718692,1725987081606,-3969.43,0.00018903,2]
[337718693,1725987081616,-1187.95,0.00018903,2]
[337718694,1725987081625,-500.0,0.00018903,2]
[337718695,1725987081635,-179.20959987,0.00018903,2]
[337718696,1725987081644,-500.0,0.00018903,2]
[337718697,1725987081654,-8904.62,0.00018903,2]
[337718698,1725987081664,-500.0,0.00018903,2]
[337718699,1725987081673,-1301.09,0.00018903,2]
[337718700,1725987081683,-151.0,0.00018903,2]
[337718701,1725987081692,-500.0,0.00018903,2]
[337718702,1725987081702,-1116.76,0.00018903,2]
[337718703,1725987081711,-2535.01,0.00018903,2]
[337718704,1725987081720,-1737.23,0.00018903,2]
[337718705,1725987081730,-500.0,0.00018903,2]
[337718706,1725987081831,-151.0,0.00018903,2]
[337718707,1725987081849,-151.0,0.00018903,2]
[337718708,1725987081858,-500.0,0.00018903,2]
[337718709,1725987081867,-1452.81,0.00018903,2]
[337718710,1725987081881,-500.0,0.00018903,2]
[337718711,1725987081890,-500.0,0.00018903,2]
[337718712,1725987081900,-500.0,0.00018903,2]
[337718713,1725987081909,-3779.0,0.00018903,2]
[337718714,1725987081920,-500.0,0.00018903,2]
[337718715,1725987081930,-500.0,0.00018903,2]
[337718716,1725987081939,-565.66,0.00018904,2]
[337718717,1725987081950,-920.25,0.00018904,2]
[337718718,1725987081960,-500.0,0.00018904,2]
[337718719,1725987081970,-500.0,0.00018904,2]
[337718720,1725987081979,-500.0,0.00018904,2]
[337718721,1725987081988,-500.0,0.00018904,2]
[337718722,1725987081999,-1099.81,0.00018904,2]
[337718723,1725987082009,-449.849696,0.00018904,2]
[337718724,1725987082019,-449.849696,0.00018904,2]
[337718725,1725987082029,-151.0,0.00018904,2]
[337718726,1725987082039,-1604.71,0.00018904,2]
[337718727,1725987082049,-2210.6,0.00018904,2]
[337718728,1725987082058,-151.0,0.00018904,2]
[337718729,1725987082067,-151.0,0.00018904,2]
[337718730,1725987082076,-500.0,0.00018904,2]
[337718731,1725987082091,-1189.48,0.00018904,2]
[337718732,1725987082101,-500.0,0.00018904,2]
[337718733,1725987082110,-663.24,0.00018904,2]
[337718734,1725987082120,-1038.53,0.00018904,2]
[337718735,1725987082129,-1169.08,0.00018904,2]
[337718736,1725987082139,-505.5,0.00018904,2]
[337718737,1725987082148,-1822.14,0.00018904,2]
[337718738,1725987082157,-720.07,0.00018904,2]
[337718739,1725987082166,-2913.8,0.00018904,2]
[337718740,1725987082175,-1955.94,0.00018904,2]
[337718741,1725987082185,-742.92,0.00018904,2]
[337718742,1725987082194,-500.0,0.00018904,2]
[337718743,1725987082203,-609.62,0.00018904,2]
[337718744,1725987082213,-1713.89,0.00018904,2]
[337718745,1725987082222,-500.0,0.00018904,2]
[337718746,1725987082231,-971.86,0.00018904,2]
[337718747,1725987082241,-2284.58,0.00018904,2]
[337718748,1725987082250,-1021.87,0.00018904,2]
[337718749,1725987082259,-792.09,0.00018904,2]
[337718750,1725987082268,-1816.79,0.00018904,2]
[337718751,1725987082277,-500.0,0.00018904,2]
[337718752,1725987082287,-720.94,0.00018904,2]
[337718753,1725987082295,-753.23,0.00018904,2]
[337718754,1725987082305,-1933.6,0.00018904,2]
[337718755,1725987082314,-1008.22,0.00018904,2]
[337718756,1725987082323,-1583.17,0.00018904,2]
[337718757,1725987082333,-500.0,0.00018904,2]
[337718758,1725987082342,-2583.819816,0.00018904,2]
[337718759,1725987082353,-2583.819816,0.00018904,2]
[337718760,1725987082362,-500.0,0.00018904,2]
[337718761,1725987082372,-500.0,0.00018904,2]
[337718762,1725987082382,-9481.22,0.00018904,2]
[337718763,1725987082392,-1938.09,0.00018904,2]
[337718764,1725987082402,-1806.64,0.00018904,2]
[337718765,1725987082411,-589.44,0.00018904,2]
[337718766,1725987082421,-500.0,0.00018904,2]
[337718767,1725987082430,-1240.8,0.00018904,2]
[337718768,1725987082439,-946.63,0.00018904,2]
[337718769,1725987082449,-38864.62,0.00018904,2]
[337718770,1725987082458,-500.0,0.00018904,2]
[337718771,1725987082467,-2013.95,0.00018904,2]
[337718772,1725987082478,-2044.37,0.00018904,2]
[337718773,1725987082487,-53987.64,0.00018904,2]
[337718774,1725987082496,-500.0,0.00018904,2]
[337718775,1725987082506,-4713.36,0.00018904,2]
[337718776,1725987082516,-535.49,0.00018904,2]
[337718777,1725987082526,-500.0,0.00018904,2]
[337718778,1725987082535,-965.38,0.00018904,2]
[337718779,1725987082545,-215.567857,0.00018904,2]
[337718780,1725987082555,-806.04,0.00018904,2]
[337718781,1725987082564,-500.0,0.00018904,2]
[337718782,1725987082573,-215.567851,0.00018904,2]
[337718783,1725987082583,-500.0,0.00018904,2]
[337718784,1725987082593,-151.0,0.00018904,2]
[337718785,1725987082604,-2582.53,0.00018904,2]
[337718786,1725987082614,-677.86,0.00018904,2]
[337718787,1725987082624,-500.0,0.00018904,2]
[337718788,1725987082633,-500.0,0.00018904,2]
[337718789,1725987082642,-771.86,0.00018904,2]
[337718790,1725987082652,-500.0,0.00018904,2]
[337718791,1725987082661,-1718.58,0.00018904,2]
[337718792,1725987082670,-1132.77,0.00018904,2]
[337718793,1725987082680,-2709.96,0.00018904,2]
[337718794,1725987082690,-652.93,0.00018904,2]
[337718795,1725987082699,-354.52113427,0.00018904,2]
[337718796,1725987082709,-5158.88,0.00018904,2]
[337718797,1725987082719,-500.0,0.00018904,2]
[337718798,1725987082728,-3325.15461466,0.00018904,2]
[337718799,1725987082737,-1065.08,0.00018905,2]
[337718800,1725987082747,-500.0,0.00018905,2]
[337718801,1725987082756,-660.04,0.00018905,2]
[337718802,1725987082766,-204.7099061,0.00018905,2]
[337718803,1725987082776,-500.0,0.00018905,2]
[337718804,1725987082785,-500.0,0.00018905,2]
[337718805,1725987082794,-1568.6,0.00018905,2]
[337718806,1725987082803,-792.17,0.00018905,2]
[337718807,1725987082813,-500.0,0.00018905,2]
[337718808,1725987082823,-904.46,0.00018905,2]
[337718809,1725987082832,-500.0,0.00018905,2]
[337718810,1725987082841,-625.22,0.00018905,2]
[337718811,1725987082851,-536.45,0.00018905,2]
[337718812,1725987082861,-500.0,0.00018905,2]
[337718813,1725987082870,-500.0,0.00018905,2]
[337718814,1725987082880,-502.6,0.00018905,2]
[337718815,1725987082891,-500.0,0.00018905,2]
[337718816,1725987082902,-1049.86,0.00018905,2]
[337718817,1725987082913,-1076.1,0.00018905,2]
[337718818,1725987082923,-500.0,0.00018905,2]
[337718819,1725987082932,-500.0,0.00018905,2]
[337718820,1725987082942,-500.0,0.00018905,2]
[337718821,1725987082951,-500.0,0.00018905,2]
[337718822,1725987082962,-426.9580764,0.00018905,2]
[337718823,1725987082971,-500.0,0.00018905,2]
[337718824,1725987082982,-500.0,0.00018905,2]
[337718825,1725987082993,-500.0,0.00018905,2]
[337718826,1725987083003,-629.08,0.00018905,2]
[337718827,1725987083014,-500.0,0.00018905,2]
[337718828,1725987083024,-712.42,0.00018905,2]
[337718829,1725987083033,-500.0,0.00018905,2]
[337718830,1725987083042,-500.0,0.00018905,2]
[337718831,1725987083051,-500.0,0.00018905,2]
[337718832,1725987083061,-500.0,0.00018905,2]
[337718833,1725987083070,-500.0,0.00018905,2]
[337718834,1725987083079,-500.0,0.00018905,2]
[337718835,1725987083089,-852.74,0.00018905,2]
[337718836,1725987083098,-500.0,0.00018905,2]
[337718837,1725987083108,-500.0,0.00018905,2]
[337718838,1725987083117,-800.96,0.00018905,2]
[337718839,1725987083127,-649.67,0.00018905,2]
[337718840,1725987083139,-524.00853272,0.00018905,2]
[337718841,1725987083150,-500.0,0.00018905,2]